Cogmind - Beta 16.1 @@@ ROGUE MODE // 2026.02.21 @ 17:24:06 Player: Ceorik Result: Destroyed by D-53 Grenadier with Mini Grenade Launcher Performance ------------- Evolutions (0) 0 Regions Visited (2) 400 Robots Destroyed (18) 90 Value Destroyed (311) 311 Prototype IDs (2) 40 Alien Tech Used (0) 0 Bonus (0) 0 TOTAL SCORE: 841 Bonus ------- None Cogmind --------- Core Integrity 0/250 Matter 121/300 Energy 100/100 System Corruption 0% Temperature Cool (0) Movement Walking (120) Location -10/Mines Parts ------- > --- POWER (1) -------- (None) > --- PROPULSION (2) --- Aluminum Leg > --- UTILITY (2) ------ Small Storage Unit > --- WEAPON (2) ------- (None) > --- INVENTORY (8) ---- Hardened Light Armor Plating Autogun Autogun Autogun Mini Grenade Launcher Mini Grenade Launcher Mining Claw Peak State ------------ > --- POWER ------------ Ion Engine > --- PROPULSION ------- Aluminum Leg Aluminum Leg > --- UTILITY ---------- Small Storage Unit Hardened Light Armor Plating > --- WEAPON ----------- Autogun Bore Cannon > --- INVENTORY -------- Hardened Light Armor Plating Hardened Light Armor Plating Autogun Autogun Autogun Mini Grenade Launcher Mini Grenade Launcher Mining Claw [Rating: 14] Favorites ----------- Power Ion Engine Engine Ion Engine Propulsion Aluminum Leg Leg Aluminum Leg Utility Small Storage Unit Storage Small Storage Unit Protection Hardened Light Armor Plating Weapon Autogun Energy Gun Small Laser Ballistic Gun Autogun Ballistic Cannon Bore Cannon Launcher Mini Grenade Launcher Slashing Weapon Mining Claw Build | -11 -10 -10 ------- Run | Yrd Mat Min Slots Evolved . | . . . Power . | . . . Propulsion . | . . . Utility . | . . . Weapon . | . . . Parts Attached 16 | 6 5 5 Power 1 | 1 . . Engine 1 | 1 . . Core . | . . . Reactor . | . . . Propulsion 3 | 2 . 1 Treads . | . . . Leg 3 | 2 . 1 Wheel . | . . . Hover . | . . . Flight . | . . . Utility 3 | 1 1 1 Device . | . . . Storage 1 | 1 . . Processor . | . . . Hackware . | . . . Protection 2 | . 1 1 Artifact . | . . . Weapon 9 | 2 4 3 Energy Gun 1 | 1 . . Energy Cannon . | . . . Ballistic Gun 4 | 1 2 1 Ballistic Cannon 1 | . . 1 Launcher 2 | . 1 1 Special Weapon . | . . . Impact Weapon . | . . . Slashing Weapon 1 | . 1 . Piercing Weapon . | . . . Special Melee Weapon . | . . . Unidentified Prototypes . | . . . Parts Lost 6 | . . 6 Power 1 | . . 1 Propulsion 1 | . . 1 Utility 2 | . . 2 Weapon 2 | . . 2 Highest Loss Streak 6 | . . 6 To Critical Strikes . | . . . Average Backups 6 | . 6 7 Power . | . . . Propulsion . | . . . Utility 1 | . 2 1 Weapon 3 | . 3 5 Tool/Special . | . . . Unused Backups 5 | . 3 2 Power . | . . . Propulsion 1 | . 1 . Utility 2 | . 1 1 Weapon 2 | . 1 1 Tool/Special . | . . . Average Slot Usage (%) 96 | . 96 93 Engine 13 | . 14 12 Leg 27 | . 28 25 Storage 14 | . 14 14 Protection 11 | . 10 14 Energy Gun 2 | . 2 . Ballistic Gun 21 | . 22 16 Slashing Weapon 2 | . 2 2 Peak Build Rating 14 | 6 11 14 Average Rating 9 | 4 9 10 On Entrance 5 | . 6 10 Avg Prop Armor Cover (%) . | . . . Naked Turns . | . . . Heaviest Build 21 | 12 21 21 Greatest Support 20 | 20 20 20 Greatest Overweight (x) 1 | . 1 1 Average Overweight (x) . | . . . Largest Inventory Capacity 8 | 8 8 8 Average Capacity 7 | 7 8 8 Most Carried 8 | 2 8 8 Average Carried 6 | . 6 7 Final Capacity 8 | 8 8 8 Final Carried 8 | 1 8 7 Class Distribution -------------------- 100% | Mutant Dominant Class ---------------- Mutant | -10/Materials Mutant | -10/Mines Resources | -11 -10 -10 ----------- Run | Yrd Mat Min Matter Collected 636 | 184 452 . Remotely . | . . . Salvage Created 596 | . 557 39 Parts 33 | . 33 . Haulers Intercepted 1 | . 1 . Recyclers Shooed . | . . . Parts Field Recycled . | . . . Retrieved Matter . | . . . Parts Self-Destructed . | . . . Prevented . | . . . Parts Restored . | . . . Kills | -11 -10 -10 ------- Run | Yrd Mat Min Combat Hostiles Destroyed 27 | . 11 16 Guns 10 | . 9 1 AOE 17 | . 2 15 Classes Destroyed 7 | . 6 1 Worker 2 | . 2 . Hauler 1 | . 1 . Recycler 2 | . 2 . Watcher 2 | . 2 . Swarmer 6 | . 6 . Grunt 5 | . 5 . Assembled 16 | . . 16 Best Kill Streak 16 | . 6 16 Combat Bots Only 16 | . 3 16 Max Kills in Single Turn 7 | . 3 7 Gunslinging . | . . . Exploded 7 | . 2 7 Melee . | . . . Uniques/NPCs Destroyed . | . . . Combat | -11 -10 -10 -------- Run | Yrd Mat Min Hostile Shots Fired 93 | . 55 38 Missed 26 | . 16 10 Hits 67 | . 39 28 Projectile 67 | . 39 28 AOE 16 | . . 16 Critical Strikes 1 | . . 1 Damage Taken 1305 | . 451 854 Core 251 | . 151 100 Absorbed by Shields . | . . . Core Remaining (%) 100 | 100 . . Volleys Fired 49 | . 40 9 Largest 2 | . 2 2 Hottest 71 | . 53 71 Shots Fired 98 | . 80 18 Gun 86 | . 79 7 Cannon 3 | . . 3 Launcher 9 | . 1 8 Special . | . . . Kinetic 89 | . 79 10 Thermal . | . . . Explosive 9 | . 1 8 Electromagnetic . | . . . Robot Hit Streak 15 | . 15 2 Robot Miss Streak 4 | . 4 2 Penetration Max . | . . . Secondary Targets . | . . . Shots Hit Robots 51 | . 45 6 Core Hits 56 | . 24 32 Critical Kills . | . . . Critical Parts Destroyed 1 | . 1 . Critical Strikes 1 | . 1 . Destroy 1 | . 1 . Melee Attacks 3 | . 2 1 Impact . | . . . Slashing 3 | . 2 1 Piercing . | . . . Sneak Attacks . | . . . Combat Hostiles . | . . . Follow-up Attacks . | . . . Damage Inflicted 1987 | . 781 1206 Guns 724 | . 679 45 Cannons 50 | . . 50 Explosions 1213 | . 102 1111 Melee . | . . . Ramming . | . . . Kinetic 774 | . 679 95 Thermal . | . . . Explosive 1213 | . 102 1111 Electromagnetic . | . . . Impact . | . . . Slashing . | . . . Piercing . | . . . Highest Corruption . | . . . Average Corruption . | . . . Corruption Purged . | . . . Corruption Blocked . | . . . Overload Shots . | . . . Overflow Damage 47 | . 8 39 Projectiles . | . . . Explosions 47 | . 8 39 Melee . | . . . Knockbacks 1 | . . 1 Impact . | . . . Kinetic 1 | . . 1 Secondary . | . . . Self-Inflicted Damage 60 | . 32 28 Shots 2 | . 1 1 Rammed . | . . . Targets Rammed . | . . . Kicked . | . . . Crushed . | . . . Highest Temperature 160 | . 160 70 Average Temperature 41 | . 46 24 Received Heat Transfer 141 | . 141 . Siege Activations . | . . . Martial Activations . | . . . Shielding Activations . | . . . Robots Disrupted . | . . . Combat Hostiles . | . . . Robots Corrupted . | . . . Combat Hostiles . | . . . Parts Fried . | . . . Impact Corruptions . | . . . Robots Melted . | . . . Combat Hostiles . | . . . Parts Melted . | . . . Heat Transferred . | . . . Parts Sabotaged . | . . . Parts Stolen . | . . . Parts Stripped . | . . . Power Chain Reactions . | . . . Alert | -11 -10 -10 ------- Run | Yrd Mat Min Maximum Alert Level 1 | . 1 . Low Security (%) 77 | 100 72 100 Level 1 22 | . 27 . Level 2 . | . . . Level 3 . | . . . Level 4 . | . . . Level 5 . | . . . High Security . | . . . Max Security . | . . . Peak Influence 284 | . 284 113 Initial 88 | . . 88 Average 86 | . 93 88 Influence Increases 457 | . 420 37 Destroy 0b10 Robot/C 220 | . 220 . Destroy 0b10 Robot/NC 35 | . 35 . Destroy Leader 46 | . 46 . Successful Hack 28 | . 28 . Disable Machine 30 | . 30 . Destroy Structure 53 | . 16 37 Lose Combat Pursuer 45 | . 45 . Influence Decreases 442 | . 192 250 Entered New Map 140 | . . 140 Time Decay 242 | . 192 50 Lost Part 60 | . . 60 Squads Dispatched 2 | . 2 . Investigation . | . . . Extermination . | . . . Reinforcement 2 | . 2 . Assault . | . . . Garrison . | . . . Intercept . | . . . Searches Triggered . | . . . Construction Impeded . | . . . Haulers Reinforced . | . . . Active Scanning Responses . | . . . Cargo Convoy Interrupts . | . . . Stealth | -11 -10 -10 --------- Run | Yrd Mat Min Distress Signals 3 | . 3 . Communications Jammed . | . . . Distress Signals . | . . . Times Spotted 43 | . 21 22 Peak Tracking Total 20 | . 5 20 Tactical Retreats 5 | . 3 2 Traps | -11 -10 -10 ------- Run | Yrd Mat Min Traps Triggered . | . . . Indirectly . | . . . Trap Hack Attempts . | . . . Triggered . | . . . Disarmed . | . . . Reprogrammed . | . . . Reused . | . . . Traps Extracted . | . . . Installed . | . . . Triggered . | . . . Machines | -11 -10 -10 ---------- Run | Yrd Mat Min Machines Disabled 2 | . 2 . Max in Single Turn 1 | . 1 . Machines Repaired . | . . . Machines Dismantled . | . . . Machines Sabotaged . | . . . Overloaded Fab Kills . | . . . Hacking | -11 -10 -10 --------- Run | Yrd Mat Min Machines Accessed 7 | . 7 . Terminals 7 | . 7 . Fabricators . | . . . Repair Stations . | . . . Recycling Units . | . . . Scanalyzers . | . . . Garrison Access . | . . . Total Hacks 15 | . 15 . Successful 7 | . 7 . Failed 8 | . 8 . Catastrophic 1 | . 1 . Database Lockouts . | . . . Manual 14 | . 14 . Terminals 15 | . 15 . Fabricators . | . . . Repair Stations . | . . . Recycling Units . | . . . Scanalyzers . | . . . Garrison Access . | . . . Terminal Hacks 3 | . 3 . Prototype ID Bank 1 | . 1 . Branch Access Points 1 | . 1 . Terminal Index 1 | . 1 . Fabricator Hacks . | . . . Repair Station Hacks . | . . . Recycling Unit Hacks . | . . . Scanalyzer . | . . . Garrison Access Hacks . | . . . Unauthorized Hacks 4 | . 4 . Terminals 4 | . 4 . Botnet 4 | . 4 . Fabricators . | . . . Repair Stations . | . . . Recycling Units . | . . . Scanalyzers . | . . . Garrison Access . | . . . Data Cores Recovered . | . . . Used . | . . . Hacking Detections 6 | . 6 . Full Trace Events 1 | . 1 . Feedback Events . | . . . Feedback Blocked . | . . . Robot Schematics Acquired . | . . . Robots Built . | . . . Authchips . | . . . Time . | . . . Total Robot Build Rating . | . . . Part Schematics Acquired . | . . . Parts Built . | . . . Authchips . | . . . Time . | . . . Total Part Build Rating . | . . . Part Studies Acquired . | . . . Parts Repaired . | . . . Time . | . . . Parts Recycled . | . . . Recycled Matter . | . . . Retrieved Matter . | . . . Retrieved Components . | . . . Parts Scanalyzed . | . . . Part Schematics Acquired . | . . . Parts Damaged . | . . . Bothacking | -11 -10 -10 ------------ Run | Yrd Mat Min Used RIF Installer . | . . . Robots Hacked . | . . . Non-combat . | . . . Combat . | . . . Robot Hacks Applied . | . . . Relay Couplers Released . | . . . Fabnet Peak Effective % . | . . . Robots Rewired . | . . . Allies Hacked . | . . . Hacks Repelled . | . . . Allies | -11 -10 -10 -------- Run | Yrd Mat Min Total Allies . | . . . Largest Group . | . . . Highest-Rated Group . | . . . Highest-Rated Ally . | . . . Total Orders . | . . . Ally Attacks . | . . . Total Damage . | . . . Kills . | . . . Allies Corrupted . | . . . Allies Melted . | . . . Intel | -11 -10 -10 ------- Run | Yrd Mat Min Active Infowar (turns) . | . . . Robot Analysis Total . | . . . Derelict Logs Recovered . | . . . Drone Launches . | . . . Drone Recoveries . | . . . Exploration | -11 -10 -10 ------------- Run | Yrd Mat Min Turns Passed 899 | 60 731 108 Spaces Moved 460 | 42 381 37 Core 6 | 6 . . Treads . | . . . Legs 454 | 36 381 37 Wheels . | . . . Hover . | . . . Flight . | . . . Fastest Speed 50 | 50 120 120 Average Speed 150 | 110 152 167 Slowest Speed 190 | 120 190 190 Overloaded Moves . | . . . Propulsion Burnouts . | . . . Robots Hopped . | . . . Potential Cave-ins . | . . . Cave-ins Triggered . | . . . Exploration Rate (%) 26 | 3 61 15 Regions Visited 2 Branch Regions 1 Pre-discovered Areas . | . . . Known Exits Taken 1 | . 1 . Unknown Exits Taken 1 | 1 . . Scrap Searched . | . . . Spaces Dug 2 | . 2 . Terrain Destroyed 67 | . 14 53 Melee 2 | . 2 . Projectile 3 | . . 3 AOE 62 | . 12 50 Terrain Rammed . | . . . Walls Destroyed . | . . . Machines Disabled . | . . . Actions | -11 -10 -10 --------- Run | Yrd Mat Min Total 580 | 56 462 62 Wait 24 | 2 16 6 Move 458 | 41 380 37 Hop . | . . . Pick Up 21 | 7 13 1 Fast Attach . | . . . Attach 10 | 6 3 1 Detach . | . . . Swap 9 | . 3 6 Drop 6 | . 5 1 Fire 49 | . 40 9 Melee 3 | . 2 1 Ram . | . . . Kick . | . . . Crush . | . . . Escape Stasis . | . . . Rewire . | . . . Trap . | . . . Miscellaneous . | . . . Route ------- -11/Scrapyard -10/Materials (discovered 4 exits: [*Mat x2] / *Min x2) -10/Mines History --------- Turn | Location | Event 3 | -11/Scrapyard | Discovered new exit (range 16) 61 | -11/Scrapyard | Entered Materials 271 | -10/Materials | Discovered new exit (range 16) 308 | -10/Materials | Build established: Mutant 635 | -10/Materials | Core integrity fell below 50% 648 | -10/Materials | Discovered new exit (range 8) 751 | -10/Materials | Discovered new exit (range 12) 766 | -10/Materials | Identified exit to Mines 792 | -10/Materials | Entered Mines 793 | -10/Mines | Assembled infested the area 798 | -10/Mines | Assisted by a Guerilla fighting off Assembled 830 | -10/Mines | Core integrity fell below 20% 857 | -10/Mines | Destroyed 16 combat bots 900 | -10/Mines | Destroyed by D-53 Grenadier with Mini Grenade Launcher Last Messages --------------- payload. 00882_ D-53 Grenadier unfolds itself. 00882_ U-05 Engineer lays Concrete. 00883_ U-05 Engineer destroyed. 00885_ HV Slug penetrates D-53 Grenadier. 00885_ D-53 Grenadier knocked back. 00885_ HV Slug penetrates D-53 Grenadier. 00885_ HV Slug penetrates Wall. 00886_ The unstable cave ceiling collapses. 00887_ Aluminum Leg destroyed. 00887_ Hrd. Light Armor Plating destroyed. 00889_ HV Slug penetrates Wall. 00892_ The unstable cave ceiling collapses. 00892_ HV Slug penetrates D-53 Grenadier. 00893_ Autogun destroyed. 00895_ Bore Cannon destroyed. 00897_ The unstable cave ceiling collapses. 00899_ Ion Engine destroyed. 00900_ The unstable cave ceiling collapses. 00900_ Hrd. Light Armor Plating destroyed. Map ----- +----------------------------------------------------+ | | | | | ??????????????????????????????????????????? | | ?????????????????????????????###??????????? | | ???????????????????????????## ##?????????? | | ???????????????????????????# #?????????? | | ?????????????????????????### #?????????? | | ???????????????????????### #?????????? | | ???????????????????????# ##????????? | | ???????????????????????# #????????? | | ???????????????????????# #????????? | | ???????????????????????### ##????????? | | ???????????????????????# ##?????????? | | ???????????????????????# = ##?????????? | | ???????????????????????# # ######????? | | ???????????????????????# # ##???? | | ???????????????????????# # # #???? | | ???????????????????????# # ## #???? | | ???????????????????????# #???? | | ???????????????????????# #???? | | ???????????????????????# ##???? | | ?????????????????????### ##????? | | ?????????????????????# ## #?????? | | ?????????????????????# #?????? | | ???????????????????#### ##?????? | | ???????????????????# @ #??????? | | ???????????? < #??????? | | ?????????????###### #?????? | | ??????????????????## #?????? | | ???????????????????## #?????? | | ????????????????????## d ##?????? | | ?????????????????????# d ##??????? | | ?????????????????????# ##???????? | | ????????????????????? %% ##????????? | | ???????????????????? %#?????????? | | ???????????????????# ## ?????????? | | ???????????????????## ####; ????????? | | ????????????????????# #???;# ???????? | | ???????????????????? ????##?????????? | | ????????????????????? #???????????????? | | ??????????????????????? #????????????????? | | ??????????????????????????????????????????? | | ??????????????????????????????????????????? | | ??????????????????????????????????????????? | | ??????????????????????????????????????????? | | ??????????????????????????????????????????? | | ??????????????????????????????????????????? | | ??????????????????????????????????????????? | | ??????????????????????????????????????????? | | ??????????????????????????????????????????? | +----------------------------------------------------+ Best States ------------- Heat Dissipation 25 Energy Generation 10 Energy Capacity 250 Matter Stores 300 Matter Capacity 300 Sight Range 16 Terrain Scan Density 10 Armor Coverage 150 Evasion (%) 55 Item Schematics ----------------- None Robot Schematics ------------------ None Fabricated ------------ Nothing Repaired ---------- Nothing Studied --------- None Alien Tech Used ----------------- None Achievements -------------- Exterminator Challenges ------------ None Game ------ Seed GravityDeflectorForcegen Manual? 0 Play Time 00:10:19 Cumulative 40.0 hours Start 2026.02.21 @ 17:15:55 End 2026.02.21 @ 17:24:06 Sessions 1 Manual Loads 0 Difficulty Rogue Special Mode None Game No. 44 Rogue 44 Adventurer 0 Explorer 0 Win Type - Total 0 Types 0/0/0/0/0/0/0/0/0/0 Lore% 44 Gallery% 33 Achievement% 28 Wizard Run 0 Options --------- Layout 1 ASCII 0 Keyboard 0 Movement Mouse Keybinds 0 Fullscreen 1 Font 24/Swanston Map View 50x35 Zoom Use 0% Tactical HUD 1 Map Filters NONE Filters NONE Steam 1 RUN: 537f4613-97d7-4db8-be28-87e02a5971fc